[Event "January 2 Early 2024"]
[Site "https://www.chess.com"]
[Date "2024.01.02"]
[Round "3"]
[White "Avramidou, Anastasia"]
[Black "Nayak Rajesh"]
[Result "1-0"]
[Board "123"]
[TimeControl "180+1"]
[WhiteFideId "4239873"]
[BlackFideId "35017152"]
[WhiteElo "2614"]
[BlackElo "2380"]
[WhiteTeam "GRE"]
[BlackTeam "IND"]
[WhiteClock "0:00:48"]
[BlackClock "0:00:31"]

1. Nf3 {[%clk 0:03:00]}  Nf6 {[%clk 0:02:58]} 2. c4 {[%clk 0:02:59]}  g6 {[%clk 0:02:58]} 3. Nc3 {[%clk 0:02:59]}  Bg7 {[%clk 0:02:59]} 4. e4 {[%clk 0:03:00]}  d6 {[%clk 0:02:59]} 5. d4 {[%clk 0:03:00]}  O-O {[%clk 0:03:00]} 6. h4 {[%clk 0:03:01]}  Bg4 {[%clk 0:02:59]} 7. Be2 {[%clk 0:03:01]}  Nc6 {[%clk 0:02:58]} 8. d5 {[%clk 0:03:00]}  Bxf3 {[%clk 0:02:55]} 9. Bxf3 {[%clk 0:03:01]}  Ne5 {[%clk 0:02:54]} 10. Be2 {[%clk 0:03:02]}  h5 {[%clk 0:02:53]} 11. f3 {[%clk 0:03:02]}  e6 {[%clk 0:02:47]} 12. Bg5 {[%clk 0:03:00]}  Qd7 {[%clk 0:02:43]} 13. O-O {[%clk 0:02:59]}  exd5 {[%clk 0:02:40]} 14. cxd5 {[%clk 0:03:00]}  c5 {[%clk 0:02:33]} 15. dxc6 {[%clk 0:02:57]}  bxc6 {[%clk 0:02:33]} 16. Qd2 {[%clk 0:02:55]}  Nh7 {[%clk 0:02:26]} 17. Bf4 {[%clk 0:02:32]}  Qe7 {[%clk 0:02:24]} 18. Rad1 {[%clk 0:02:23]}  Rad8 {[%clk 0:02:21]} 19. g3 {[%clk 0:02:14]}  Qe6 {[%clk 0:02:11]} 20. Kg2 {[%clk 0:02:10]}  Rd7 {[%clk 0:01:56]} 21. b3 {[%clk 0:02:03]}  Rfd8 {[%clk 0:01:56]} 22. Rfe1 {[%clk 0:01:52]}  d5 {[%clk 0:01:54]} 23. exd5 {[%clk 0:01:51]}  cxd5 {[%clk 0:01:53]} 24. Bb5 {[%clk 0:01:42]}  Rd6 {[%clk 0:01:52]} 25. Qe2 {[%clk 0:01:29]}  d4 {[%clk 0:01:16]} 26. Na4 {[%clk 0:01:29]}  Rd5 {[%clk 0:01:09]} 27. Bxe5 {[%clk 0:01:19]}  Rxe5 {[%clk 0:01:07]} 28. Qf1 {[%clk 0:01:18]}  Nf8 {[%clk 0:00:57]} 29. Bc4 {[%clk 0:01:18]}  Qd6 {[%clk 0:00:55]} 30. Nb2 {[%clk 0:01:13]}  Re3 {[%clk 0:00:49]} 31. Rxe3 {[%clk 0:01:10]}  dxe3 {[%clk 0:00:48]} 32. Rxd6 {[%clk 0:01:11]}  Rxd6 {[%clk 0:00:49]} 33. Nd3 {[%clk 0:01:08]}  Ne6 {[%clk 0:00:47]} 34. Bxe6 {[%clk 0:01:07]}  Rxe6 {[%clk 0:00:48]} 35. Qe2 {[%clk 0:01:08]}  Bd4 {[%clk 0:00:47]} 36. f4 {[%clk 0:01:07]}  f5 {[%clk 0:00:46]} 37. Kf3 {[%clk 0:01:07]}  Kf7 {[%clk 0:00:46]} 38. Ne5+ {[%clk 0:01:02]}  Kf6 {[%clk 0:00:47]} 39. Nc4 {[%clk 0:00:55]}  Bc5 {[%clk 0:00:44]} 40. a3 {[%clk 0:00:54]}  Bd4 {[%clk 0:00:43]} 41. b4 {[%clk 0:00:54]}  Kg7 {[%clk 0:00:42]} 42. a4 {[%clk 0:00:54]}  Kh6 {[%clk 0:00:42]} 43. a5 {[%clk 0:00:54]}  Re4 {[%clk 0:00:41]} 44. b5 {[%clk 0:00:52]}  Re6 {[%clk 0:00:31]} 45. Nxe3 {[%clk 0:00:48]} 1-0

[Event "January 2 Early 2024"]
[Site "https://www.chess.com"]
[Date "2024.01.02"]
[Round "3"]
[White "Miszler, Levente"]
[Black "Al-Tarboush, Ward"]
[Result "0-1"]
[Board "124"]
[TimeControl "180+1"]
[WhiteFideId "763276"]
[BlackFideId "7601450"]
[WhiteElo "2395"]
[BlackElo "2613"]
[WhiteTeam "HUN"]
[BlackTeam "NOR"]
[WhiteClock "0:00:30"]
[BlackClock "0:00:04"]

1. Nf3 {[%clk 0:02:55]}  Nf6 {[%clk 0:02:59]} 2. c4 {[%clk 0:02:56]}  b6 {[%clk 0:02:59]} 3. g3 {[%clk 0:02:56]}  Bb7 {[%clk 0:02:59]} 4. Bg2 {[%clk 0:02:57]}  c5 {[%clk 0:02:58]} 5. O-O {[%clk 0:02:57]}  g6 {[%clk 0:02:58]} 6. d4 {[%clk 0:02:58]}  cxd4 {[%clk 0:02:58]} 7. Qxd4 {[%clk 0:02:59]}  Bg7 {[%clk 0:02:57]} 8. Nc3 {[%clk 0:02:59]}  O-O {[%clk 0:02:57]} 9. Qh4 {[%clk 0:02:56]}  d6 {[%clk 0:02:54]} 10. Bh6 {[%clk 0:02:56]}  Nbd7 {[%clk 0:02:53]} 11. Bxg7 {[%clk 0:02:56]}  Kxg7 {[%clk 0:02:54]} 12. Rac1 {[%clk 0:02:56]}  Rc8 {[%clk 0:02:54]} 13. Rfd1 {[%clk 0:02:56]}  Bxf3 {[%clk 0:02:44]} 14. Bxf3 {[%clk 0:02:54]}  Ne5 {[%clk 0:02:45]} 15. Bd5 {[%clk 0:02:50]}  e6 {[%clk 0:02:40]} 16. f4 {[%clk 0:02:34]}  Neg4 {[%clk 0:02:24]} 17. Bf3 {[%clk 0:02:27]}  Ne3 {[%clk 0:02:24]} 18. Rd3 {[%clk 0:02:27]}  Nf5 {[%clk 0:02:19]} 19. Qh3 {[%clk 0:02:24]}  Rxc4 {[%clk 0:02:19]} 20. Rcd1 {[%clk 0:02:24]}  Qc8 {[%clk 0:01:59]} 21. e4 {[%clk 0:02:22]}  Qc5+ {[%clk 0:01:56]} 22. Kh1 {[%clk 0:02:18]}  Nd4 {[%clk 0:01:39]} 23. Bg2 {[%clk 0:02:12]}  e5 {[%clk 0:01:29]} 24. f5 {[%clk 0:02:10]}  b5 {[%clk 0:01:25]} 25. g4 {[%clk 0:02:10]}  g5 {[%clk 0:01:21]} 26. Qe3 {[%clk 0:02:03]}  h6 {[%clk 0:01:17]} 27. h4 {[%clk 0:02:03]}  Nxg4 {[%clk 0:01:05]} 28. Qg3 {[%clk 0:02:03]}  h5 {[%clk 0:00:52]} 29. hxg5 {[%clk 0:02:03]}  b4 {[%clk 0:00:45]} 30. Nd5 {[%clk 0:02:03]}  Ne2 {[%clk 0:00:40]} 31. f6+ {[%clk 0:02:03]}  Kg6 {[%clk 0:00:23]} 32. Qf3 {[%clk 0:01:59]}  Nf2+ {[%clk 0:00:23]} 33. Kh2 {[%clk 0:01:57]}  Nf4 {[%clk 0:00:15]} 34. Nxf4+ {[%clk 0:01:53]}  exf4 {[%clk 0:00:16]} 35. Rd5 {[%clk 0:01:53]}  Qe3 {[%clk 0:00:14]} 36. Rg1 {[%clk 0:01:39]}  Rc2 {[%clk 0:00:12]} 37. Qxe3 {[%clk 0:01:33]}  fxe3 {[%clk 0:00:13]} 38. Rxd6 {[%clk 0:01:28]}  e2 {[%clk 0:00:13]} 39. Bf3 {[%clk 0:01:25]}  Ng4+ {[%clk 0:00:11]} 40. Kg3 {[%clk 0:01:19]}  Ne5 {[%clk 0:00:11]} 41. Kf4 {[%clk 0:01:14]}  Nxf3 {[%clk 0:00:10]} 42. Kxf3 {[%clk 0:01:15]}  Re8 {[%clk 0:00:10]} 43. Rd3 {[%clk 0:01:04]}  Re5 {[%clk 0:00:09]} 44. Re3 {[%clk 0:00:57]}  Rxg5 {[%clk 0:00:09]} 45. Rxg5+ {[%clk 0:00:58]}  Kxg5 {[%clk 0:00:09]} 46. e5 {[%clk 0:00:59]}  Kg6 {[%clk 0:00:06]} 47. a3 {[%clk 0:00:38]}  b3 {[%clk 0:00:05]} 48. Ke4 {[%clk 0:00:32]}  Rxb2 {[%clk 0:00:04]} 49. Kd5 {[%clk 0:00:32]}  Rd2+ {[%clk 0:00:04]} 50. Kc4 {[%clk 0:00:30]}  b2 {[%clk 0:00:04]} 0-1

[Event "January 2 Early 2024"]
[Site "https://www.chess.com"]
[Date "2024.01.02"]
[Round "3"]
[White "Bueno, Alfeu Junior Varela"]
[Black "Maltsevskaya, Aleksandra"]
[Result "0-1"]
[Board "130"]
[TimeControl "180+1"]
[WhiteFideId "2108879"]
[BlackFideId "24174041"]
[WhiteElo "2349"]
[BlackElo "2600"]
[WhiteTeam "BRA"]
[BlackTeam "POL"]
[WhiteClock "0:00:00"]
[BlackClock "0:00:14"]

1. e4 {[%clk 0:03:00]}  c5 {[%clk 0:02:58]} 2. Nc3 {[%clk 0:03:00]}  Nc6 {[%clk 0:02:55]} 3. f4 {[%clk 0:03:00]}  g6 {[%clk 0:02:51]} 4. Nf3 {[%clk 0:03:00]}  Bg7 {[%clk 0:02:51]} 5. Bb5 {[%clk 0:03:01]}  d6 {[%clk 0:02:51]} 6. Bxc6+ {[%clk 0:03:00]}  bxc6 {[%clk 0:02:52]} 7. d3 {[%clk 0:03:01]}  Nf6 {[%clk 0:02:53]} 8. O-O {[%clk 0:03:01]}  O-O {[%clk 0:02:53]} 9. Qe1 {[%clk 0:02:59]}  c4 {[%clk 0:02:51]} 10. dxc4 {[%clk 0:02:38]}  a5 {[%clk 0:02:44]} 11. Rb1 {[%clk 0:02:12]}  a4 {[%clk 0:02:41]} 12. Kh1 {[%clk 0:02:08]}  Bg4 {[%clk 0:02:12]} 13. Qh4 {[%clk 0:01:59]}  Bxf3 {[%clk 0:02:04]} 14. Rxf3 {[%clk 0:02:00]}  h5 {[%clk 0:01:45]} 15. f5 {[%clk 0:01:55]}  Qa5 {[%clk 0:01:17]} 16. Qg5 {[%clk 0:01:30]}  Qc5 {[%clk 0:01:14]} 17. fxg6 {[%clk 0:01:24]}  Ng4 {[%clk 0:00:53]} 18. Qxc5 {[%clk 0:00:38]}  dxc5 {[%clk 0:00:53]} 19. gxf7+ {[%clk 0:00:32]}  Rxf7 {[%clk 0:00:54]} 20. Rxf7 {[%clk 0:00:19]}  Kxf7 {[%clk 0:00:54]} 21. h3 {[%clk 0:00:19]}  Ne5 {[%clk 0:00:53]} 22. b3 {[%clk 0:00:13]}  Nxc4 {[%clk 0:00:38]} 23. Nxa4 {[%clk 0:00:11]}  Bd4 {[%clk 0:00:23]} 24. Bf4 {[%clk 0:00:05]}  Na3 {[%clk 0:00:22]} 25. Rc1 {[%clk 0:00:03]}  c4 {[%clk 0:00:19]} 26. c3 {[%clk 0:00:03]}  Ba7 {[%clk 0:00:16]} 27. Rf1 {[%clk 0:00:03]}  Ke6 {[%clk 0:00:16]} 28. Bc1 {[%clk 0:00:02]}  Nb5 {[%clk 0:00:15]} 29. bxc4 {[%clk 0:00:02]}  Nd6 {[%clk 0:00:16]} 30. Nb2 {[%clk 0:00:00]}  Bb6 {[%clk 0:00:14]} 0-1

[Event "January 2 Early 2024"]
[Site "https://www.chess.com"]
[Date "2024.01.02"]
[Round "3"]
[White "Weishaeutel, Moritz"]
[Black "Lira, Suan Bruno Fernandes"]
[Result "1-0"]
[Board "132"]
[TimeControl "180+1"]
[WhiteFideId "12967300"]
[BlackFideId "22794620"]
[WhiteElo "2583"]
[BlackElo "2343"]
[WhiteTeam "GER"]
[BlackTeam "BRA"]
[WhiteClock "0:00:18"]
[BlackClock "0:00:02"]

1. d4 {[%clk 0:03:00]}  d5 {[%clk 0:02:56]} 2. Bg5 {[%clk 0:03:00]}  Nf6 {[%clk 0:02:56]} 3. Nf3 {[%clk 0:02:56]}  c5 {[%clk 0:02:50]} 4. e3 {[%clk 0:02:55]}  Nc6 {[%clk 0:02:50]} 5. c4 {[%clk 0:02:46]}  cxd4 {[%clk 0:02:47]} 6. exd4 {[%clk 0:02:46]}  e6 {[%clk 0:02:45]} 7. Nc3 {[%clk 0:02:45]}  Be7 {[%clk 0:02:43]} 8. Bd3 {[%clk 0:02:44]}  dxc4 {[%clk 0:02:42]} 9. Bxc4 {[%clk 0:02:45]}  O-O {[%clk 0:02:43]} 10. O-O {[%clk 0:02:45]}  b6 {[%clk 0:02:43]} 11. Re1 {[%clk 0:02:28]}  Bb7 {[%clk 0:02:41]} 12. a3 {[%clk 0:02:27]}  Rc8 {[%clk 0:02:40]} 13. Ba2 {[%clk 0:02:26]}  Nd5 {[%clk 0:02:28]} 14. Bd2 {[%clk 0:02:16]}  Nxc3 {[%clk 0:02:17]} 15. Bxc3 {[%clk 0:02:17]}  Bf6 {[%clk 0:02:14]} 16. Qd3 {[%clk 0:02:12]}  Ne7 {[%clk 0:02:09]} 17. Rad1 {[%clk 0:02:02]}  Nd5 {[%clk 0:02:04]} 18. Bb1 {[%clk 0:01:57]}  g6 {[%clk 0:02:04]} 19. Bd2 {[%clk 0:01:58]}  Bg7 {[%clk 0:01:42]} 20. Bg5 {[%clk 0:01:57]}  Qd6 {[%clk 0:01:39]} 21. Bh4 {[%clk 0:01:48]}  Nf4 {[%clk 0:01:32]} 22. Qe3 {[%clk 0:01:48]}  Nd5 {[%clk 0:01:25]} 23. Qd2 {[%clk 0:01:40]}  Qf4 {[%clk 0:01:23]} 24. Qe2 {[%clk 0:01:36]}  Qg4 {[%clk 0:01:16]} 25. h3 {[%clk 0:01:35]}  Qf4 {[%clk 0:00:58]} 26. Bg3 {[%clk 0:01:25]}  Qf6 {[%clk 0:00:58]} 27. Qd2 {[%clk 0:01:19]}  Qe7 {[%clk 0:00:47]} 28. Ne5 {[%clk 0:01:17]}  Rfd8 {[%clk 0:00:42]} 29. Ba2 {[%clk 0:01:14]}  h6 {[%clk 0:00:22]} 30. Qe2 {[%clk 0:01:13]}  Qg5 {[%clk 0:00:20]} 31. Qf3 {[%clk 0:01:13]}  Rc7 {[%clk 0:00:16]} 32. Nxg6 {[%clk 0:01:07]}  Qxg6 {[%clk 0:00:14]} 33. Bxc7 {[%clk 0:01:07]}  Rd7 {[%clk 0:00:11]} 34. Bxd5 {[%clk 0:00:50]}  Bxd5 {[%clk 0:00:08]} 35. Qg3 {[%clk 0:00:50]}  Rxc7 {[%clk 0:00:07]} 36. Qxg6 {[%clk 0:00:30]}  fxg6 {[%clk 0:00:08]} 37. Rd2 {[%clk 0:00:31]}  Kf7 {[%clk 0:00:08]} 38. f3 {[%clk 0:00:31]}  Bf6 {[%clk 0:00:08]} 39. Kf2 {[%clk 0:00:30]}  Bh4+ {[%clk 0:00:09]} 40. g3 {[%clk 0:00:30]}  Bg5 {[%clk 0:00:09]} 41. f4 {[%clk 0:00:30]}  Bf6 {[%clk 0:00:10]} 42. Ke3 {[%clk 0:00:29]}  Rc4 {[%clk 0:00:10]} 43. Red1 {[%clk 0:00:27]}  g5 {[%clk 0:00:09]} 44. Rd3 {[%clk 0:00:27]}  gxf4+ {[%clk 0:00:09]} 45. gxf4 {[%clk 0:00:28]}  Rc8 {[%clk 0:00:09]} 46. Rc3 {[%clk 0:00:28]}  Rxc3+ {[%clk 0:00:06]} 47. bxc3 {[%clk 0:00:29]}  Be7 {[%clk 0:00:05]} 48. Kd3 {[%clk 0:00:26]}  Bxa3 {[%clk 0:00:04]} 49. Ra1 {[%clk 0:00:27]}  Be7 {[%clk 0:00:05]} 50. Rxa7 {[%clk 0:00:28]}  Kf6 {[%clk 0:00:06]} 51. c4 {[%clk 0:00:28]}  Bc6 {[%clk 0:00:05]} 52. Ra6 {[%clk 0:00:27]}  Bg2 {[%clk 0:00:05]} 53. Rxb6 {[%clk 0:00:25]}  Bxh3 {[%clk 0:00:05]} 54. c5 {[%clk 0:00:25]}  Bf5+ {[%clk 0:00:06]} 55. Ke3 {[%clk 0:00:23]}  h5 {[%clk 0:00:06]} 56. c6 {[%clk 0:00:23]}  Bd6 {[%clk 0:00:07]} 57. Rb7 {[%clk 0:00:24]}  h4 {[%clk 0:00:05]} 58. c7 {[%clk 0:00:23]}  Bxc7 {[%clk 0:00:03]} 59. Rxc7 {[%clk 0:00:24]}  h3 {[%clk 0:00:04]} 60. Rc8 {[%clk 0:00:20]}  Ke7 {[%clk 0:00:05]} 61. Rh8 {[%clk 0:00:21]}  Kd6 {[%clk 0:00:05]} 62. Kf3 {[%clk 0:00:15]}  Kd5 {[%clk 0:00:06]} 63. Rd8+ {[%clk 0:00:16]}  Kc4 {[%clk 0:00:06]} 64. Kg3 {[%clk 0:00:16]}  Kd3 {[%clk 0:00:07]} 65. d5 {[%clk 0:00:16]}  exd5 {[%clk 0:00:07]} 66. Rxd5+ {[%clk 0:00:16]}  Ke4 {[%clk 0:00:07]} 67. Re5+ {[%clk 0:00:16]}  Kd4 {[%clk 0:00:03]} 68. Rxf5 {[%clk 0:00:17]}  h2 {[%clk 0:00:04]} 69. Kxh2 {[%clk 0:00:17]}  Ke4 {[%clk 0:00:02]} 70. Rf8 {[%clk 0:00:18]} 1-0

[Event "January 2 Early 2024"]
[Site "https://www.chess.com"]
[Date "2024.01.02"]
[Round "3"]
[White "Lund, Gunnar"]
[Black "Jeran, Bostjan"]
[Result "1-0"]
[Board "133"]
[TimeControl "180+1"]
[WhiteFideId "1520814"]
[BlackFideId "14604612"]
[WhiteElo "2574"]
[BlackElo "2342"]
[WhiteTeam "NOR"]
[BlackTeam "SLO"]
[WhiteClock "0:00:21"]
[BlackClock "0:00:00"]

1. d4 {[%clk 0:02:51]}  d5 {[%clk 0:02:58]} 2. c4 {[%clk 0:02:51]}  c6 {[%clk 0:02:58]} 3. Nf3 {[%clk 0:02:49]}  Nf6 {[%clk 0:02:58]} 4. g3 {[%clk 0:02:49]}  g6 {[%clk 0:02:58]} 5. Bg2 {[%clk 0:02:49]}  Bg7 {[%clk 0:02:59]} 6. O-O {[%clk 0:02:50]}  O-O {[%clk 0:02:59]} 7. Nc3 {[%clk 0:02:49]}  a6 {[%clk 0:02:53]} 8. Qb3 {[%clk 0:02:31]}  dxc4 {[%clk 0:02:43]} 9. Qxc4 {[%clk 0:02:30]}  Be6 {[%clk 0:02:41]} 10. Qa4 {[%clk 0:02:20]}  b5 {[%clk 0:02:22]} 11. Qc2 {[%clk 0:02:19]}  b4 {[%clk 0:02:21]} 12. Na4 {[%clk 0:02:14]}  Bd5 {[%clk 0:02:16]} 13. Nc5 {[%clk 0:01:58]}  Nbd7 {[%clk 0:02:12]} 14. e4 {[%clk 0:01:49]}  Nxc5 {[%clk 0:02:10]} 15. exd5 {[%clk 0:01:50]}  Ncd7 {[%clk 0:01:53]} 16. dxc6 {[%clk 0:01:48]}  Nb6 {[%clk 0:01:53]} 17. Bd2 {[%clk 0:01:43]}  Nfd5 {[%clk 0:01:47]} 18. Rfe1 {[%clk 0:01:39]}  Rc8 {[%clk 0:01:44]} 19. Rac1 {[%clk 0:01:39]}  e6 {[%clk 0:01:40]} 20. Ne5 {[%clk 0:01:35]}  Qd6 {[%clk 0:01:35]} 21. Qc5 {[%clk 0:01:17]}  Qxc5 {[%clk 0:01:23]} 22. dxc5 {[%clk 0:01:11]}  Na4 {[%clk 0:01:19]} 23. Bxd5 {[%clk 0:01:02]}  Bxe5 {[%clk 0:01:02]} 24. Bxe6 {[%clk 0:00:56]}  fxe6 {[%clk 0:00:53]} 25. Rxe5 {[%clk 0:00:55]}  Rxc6 {[%clk 0:00:49]} 26. b3 {[%clk 0:00:47]}  Nb2 {[%clk 0:00:25]} 27. Re3 {[%clk 0:00:46]}  Rd8 {[%clk 0:00:24]} 28. Bxb4 {[%clk 0:00:42]}  e5 {[%clk 0:00:16]} 29. Bc3 {[%clk 0:00:39]}  Nd3 {[%clk 0:00:15]} 30. Rd1 {[%clk 0:00:39]}  e4 {[%clk 0:00:13]} 31. b4 {[%clk 0:00:34]}  a5 {[%clk 0:00:12]} 32. a3 {[%clk 0:00:32]}  axb4 {[%clk 0:00:12]} 33. axb4 {[%clk 0:00:33]}  Rd5 {[%clk 0:00:10]} 34. Rxe4 {[%clk 0:00:30]}  Nxb4 {[%clk 0:00:04]} 35. Re8+ {[%clk 0:00:20]}  Kf7 {[%clk 0:00:00]} 36. Rde1 {[%clk 0:00:21]} 1-0

[Event "January 2 Early 2024"]
[Site "https://www.chess.com"]
[Date "2024.01.02"]
[Round "3"]
[White "Taboas Rodriguez, Daniel"]
[Black "Kleibel, Uwe"]
[Result "1/2-1/2"]
[Board "134"]
[TimeControl "180+1"]
[WhiteFideId "2208466"]
[BlackFideId "1270982"]
[WhiteElo "2573"]
[BlackElo "2342"]
[WhiteTeam "ESP"]
[BlackTeam "GER"]
[WhiteClock "0:00:31"]
[BlackClock "0:00:14"]

1. d4 {[%clk 0:03:00]}  d5 {[%clk 0:02:59]} 2. Nf3 {[%clk 0:03:00]}  Nf6 {[%clk 0:02:59]} 3. c4 {[%clk 0:03:01]}  e6 {[%clk 0:02:59]} 4. Nc3 {[%clk 0:03:01]}  Be7 {[%clk 0:02:58]} 5. Bg5 {[%clk 0:03:01]}  O-O {[%clk 0:02:58]} 6. e3 {[%clk 0:03:02]}  b6 {[%clk 0:02:59]} 7. Bd3 {[%clk 0:03:01]}  Bb7 {[%clk 0:02:58]} 8. O-O {[%clk 0:03:01]}  Nbd7 {[%clk 0:02:57]} 9. Qe2 {[%clk 0:03:01]}  dxc4 {[%clk 0:02:57]} 10. Bxc4 {[%clk 0:03:00]}  c5 {[%clk 0:02:57]} 11. Rad1 {[%clk 0:03:00]}  Qc7 {[%clk 0:02:56]} 12. Bf4 {[%clk 0:02:48]}  Qc8 {[%clk 0:02:51]} 13. Nb5 {[%clk 0:02:45]}  a6 {[%clk 0:02:41]} 14. Nd6 {[%clk 0:02:41]}  Bxd6 {[%clk 0:02:38]} 15. Bxd6 {[%clk 0:02:42]}  Re8 {[%clk 0:02:38]} 16. dxc5 {[%clk 0:02:32]}  Nxc5 {[%clk 0:02:38]} 17. Ne5 {[%clk 0:02:28]}  b5 {[%clk 0:02:28]} 18. Bd3 {[%clk 0:02:19]}  Nxd3 {[%clk 0:02:26]} 19. Rxd3 {[%clk 0:02:17]}  Nd7 {[%clk 0:02:12]} 20. Rc3 {[%clk 0:02:10]}  Qd8 {[%clk 0:02:09]} 21. Rd1 {[%clk 0:02:05]}  Nxe5 {[%clk 0:02:06]} 22. Bxe5 {[%clk 0:02:06]}  Qg5 {[%clk 0:02:03]} 23. f4 {[%clk 0:02:01]}  Qg6 {[%clk 0:02:01]} 24. Rd7 {[%clk 0:01:56]}  Bd5 {[%clk 0:01:57]} 25. Rcc7 {[%clk 0:01:55]}  Rac8 {[%clk 0:01:28]} 26. Rxf7 {[%clk 0:01:55]}  Qxf7 {[%clk 0:01:26]} 27. Rxf7 {[%clk 0:01:56]}  Kxf7 {[%clk 0:01:27]} 28. Qh5+ {[%clk 0:01:49]}  Kg8 {[%clk 0:01:27]} 29. Qg5 {[%clk 0:01:42]}  Rc1+ {[%clk 0:01:19]} 30. Kf2 {[%clk 0:01:42]}  Rc2+ {[%clk 0:01:20]} 31. Ke1 {[%clk 0:01:42]}  Rxg2 {[%clk 0:01:21]} 32. Qh5 {[%clk 0:01:36]}  Rc8 {[%clk 0:01:17]} 33. Kd1 {[%clk 0:01:22]}  Bxa2 {[%clk 0:01:10]} 34. Bc3 {[%clk 0:01:06]}  b4 {[%clk 0:01:00]} 35. Qa5 {[%clk 0:00:58]}  Bb3+ {[%clk 0:00:57]} 36. Ke1 {[%clk 0:00:55]}  bxc3 {[%clk 0:00:54]} 37. bxc3 {[%clk 0:00:56]}  Bd5 {[%clk 0:00:41]} 38. e4 {[%clk 0:00:49]}  Bxe4 {[%clk 0:00:30]} 39. Qxa6 {[%clk 0:00:49]}  Re8 {[%clk 0:00:16]} 40. Qa4 {[%clk 0:00:47]}  Rb8 {[%clk 0:00:11]} 41. Qxe4 {[%clk 0:00:46]}  Rbb2 {[%clk 0:00:11]} 42. Qxe6+ {[%clk 0:00:43]}  Kf8 {[%clk 0:00:12]} 43. Qd6+ {[%clk 0:00:38]}  Kf7 {[%clk 0:00:12]} 44. Qd5+ {[%clk 0:00:37]}  Kf8 {[%clk 0:00:13]} 45. Qd6+ {[%clk 0:00:31]}  Kf7 {[%clk 0:00:13]} 46. Qd7+ {[%clk 0:00:32]}  Kf6 {[%clk 0:00:13]} 47. Qd6+ {[%clk 0:00:31]}  Kf7 {[%clk 0:00:14]} 1/2-1/2

[Event "January 2 Early 2024"]
[Site "https://www.chess.com"]
[Date "2024.01.02"]
[Round "3"]
[White "Ankerst, Mihael"]
[Black "Korchynskyi, Mykola"]
[Result "0-1"]
[Board "136"]
[TimeControl "180+1"]
[WhiteFideId "14602369"]
[BlackFideId "34138005"]
[WhiteElo "2327"]
[BlackElo "2561"]
[WhiteTeam "SLO"]
[BlackTeam "UKR"]
[WhiteClock "0:00:00"]
[BlackClock "0:00:04"]

1. e4 {[%clk 0:03:00]}  e6 {[%clk 0:02:58]} 2. d4 {[%clk 0:03:00]}  d5 {[%clk 0:02:57]} 3. Nc3 {[%clk 0:03:00]}  dxe4 {[%clk 0:02:53]} 4. Nxe4 {[%clk 0:03:00]}  Nd7 {[%clk 0:02:54]} 5. Nf3 {[%clk 0:03:00]}  Ngf6 {[%clk 0:02:55]} 6. Bd3 {[%clk 0:03:00]}  Nxe4 {[%clk 0:02:47]} 7. Bxe4 {[%clk 0:03:00]}  Nf6 {[%clk 0:02:48]} 8. Bd3 {[%clk 0:03:01]}  Be7 {[%clk 0:02:48]} 9. Qe2 {[%clk 0:03:00]}  O-O {[%clk 0:02:47]} 10. Bg5 {[%clk 0:02:59]}  Qd5 {[%clk 0:02:48]} 11. Bh4 {[%clk 0:02:55]}  Bd7 {[%clk 0:02:45]} 12. O-O {[%clk 0:02:13]}  Bc6 {[%clk 0:02:32]} 13. c4 {[%clk 0:02:12]}  Qh5 {[%clk 0:02:30]} 14. Bg3 {[%clk 0:02:12]}  Bd6 {[%clk 0:02:26]} 15. Ne5 {[%clk 0:02:06]}  Qh6 {[%clk 0:02:16]} 16. Rfe1 {[%clk 0:01:58]}  Rad8 {[%clk 0:02:10]} 17. Red1 {[%clk 0:01:32]}  Nd7 {[%clk 0:01:55]} 18. Nxc6 {[%clk 0:01:19]}  bxc6 {[%clk 0:01:56]} 19. Be4 {[%clk 0:01:15]}  c5 {[%clk 0:01:53]} 20. d5 {[%clk 0:01:13]}  exd5 {[%clk 0:01:50]} 21. cxd5 {[%clk 0:00:52]}  Nf6 {[%clk 0:01:46]} 22. Bf3 {[%clk 0:00:52]}  Rb8 {[%clk 0:01:43]} 23. b3 {[%clk 0:00:51]}  Rfe8 {[%clk 0:01:40]} 24. Qa6 {[%clk 0:00:49]}  Nd7 {[%clk 0:01:04]} 25. Qxa7 {[%clk 0:00:46]}  Ne5 {[%clk 0:01:04]} 26. Be2 {[%clk 0:00:34]}  Ra8 {[%clk 0:00:48]} 27. Qb7 {[%clk 0:00:32]}  Reb8 {[%clk 0:00:47]} 28. Qxa8 {[%clk 0:00:19]}  Rxa8 {[%clk 0:00:47]} 29. a4 {[%clk 0:00:20]}  Qg6 {[%clk 0:00:45]} 30. Rd2 {[%clk 0:00:17]}  Qf6 {[%clk 0:00:42]} 31. Rb1 {[%clk 0:00:17]}  Ng6 {[%clk 0:00:40]} 32. Bb5 {[%clk 0:00:12]}  h5 {[%clk 0:00:33]} 33. Re1 {[%clk 0:00:08]}  h4 {[%clk 0:00:32]} 34. Bxd6 {[%clk 0:00:07]}  cxd6 {[%clk 0:00:33]} 35. Rde2 {[%clk 0:00:08]}  Kh7 {[%clk 0:00:28]} 36. Re3 {[%clk 0:00:08]}  Nf4 {[%clk 0:00:27]} 37. g3 {[%clk 0:00:08]}  Nh3+ {[%clk 0:00:27]} 38. Kg2 {[%clk 0:00:08]}  Nxf2 {[%clk 0:00:09]} 39. Rf3 {[%clk 0:00:03]}  h3+ {[%clk 0:00:03]} 40. Kxf2 {[%clk 0:00:04]}  Qd4+ {[%clk 0:00:04]} 41. Kf1 {[%clk 0:00:03]}  f6 {[%clk 0:00:04]} 42. Bd3+ {[%clk 0:00:03]}  Kh6 {[%clk 0:00:03]} 43. Re4 {[%clk 0:00:04]}  Qa1+ {[%clk 0:00:03]} 44. Re1 {[%clk 0:00:03]}  Qb2 {[%clk 0:00:04]} 45. Rf2 {[%clk 0:00:00]}  Qxb3 {[%clk 0:00:04]} 0-1

[Event "January 2 Early 2024"]
[Site "https://www.chess.com"]
[Date "2024.01.02"]
[Round "3"]
[White "Ginzburg, Yakov"]
[Black "Zampronha, Wladimir Camilo"]
[Result "1-0"]
[Board "139"]
[TimeControl "180+1"]
[WhiteFideId "4157176"]
[BlackFideId "2103087"]
[WhiteElo "2556"]
[BlackElo "2318"]
[WhiteTeam "RUS"]
[BlackTeam "BRA"]
[WhiteClock "0:00:40"]
[BlackClock "0:01:50"]

1. d4 {[%clk 0:03:00]}  Nf6 {[%clk 0:02:59]} 2. Nf3 {[%clk 0:03:00]}  e6 {[%clk 0:02:59]} 3. g3 {[%clk 0:02:59]}  c5 {[%clk 0:02:59]} 4. c4 {[%clk 0:02:59]}  cxd4 {[%clk 0:02:58]} 5. Nxd4 {[%clk 0:02:59]}  d6 {[%clk 0:02:57]} 6. Bg2 {[%clk 0:02:59]}  a6 {[%clk 0:02:58]} 7. O-O {[%clk 0:02:59]}  Be7 {[%clk 0:02:58]} 8. Nc3 {[%clk 0:02:53]}  O-O {[%clk 0:02:59]} 9. b3 {[%clk 0:02:38]}  Qc7 {[%clk 0:02:59]} 10. Bb2 {[%clk 0:02:36]}  Nbd7 {[%clk 0:02:59]} 11. Rc1 {[%clk 0:02:28]}  Re8 {[%clk 0:02:59]} 12. Qd2 {[%clk 0:02:22]}  Nc5 {[%clk 0:02:54]} 13. Rfd1 {[%clk 0:02:21]}  Bd7 {[%clk 0:02:49]} 14. Qc2 {[%clk 0:02:13]}  Bc6 {[%clk 0:02:44]} 15. Nxc6 {[%clk 0:02:10]}  bxc6 {[%clk 0:02:45]} 16. b4 {[%clk 0:01:55]}  Ncd7 {[%clk 0:02:41]} 17. b5 {[%clk 0:01:50]}  Ne5 {[%clk 0:02:41]} 18. Ne4 {[%clk 0:01:38]}  axb5 {[%clk 0:02:35]} 19. Bxe5 {[%clk 0:01:32]}  dxe5 {[%clk 0:02:33]} 20. Nxf6+ {[%clk 0:01:23]}  Bxf6 {[%clk 0:02:34]} 21. cxb5 {[%clk 0:01:24]}  Red8 {[%clk 0:02:27]} 22. bxc6 {[%clk 0:01:19]}  Rd4 {[%clk 0:02:24]} 23. e3 {[%clk 0:01:12]}  Rda4 {[%clk 0:02:10]} 24. Rd7 {[%clk 0:01:11]}  Qa5 {[%clk 0:02:09]} 25. c7 {[%clk 0:01:01]}  Rc8 {[%clk 0:02:02]} 26. Bb7 {[%clk 0:00:56]}  Rxa2 {[%clk 0:02:02]} 27. Qc3 {[%clk 0:00:40]}  Qxc3 {[%clk 0:01:50]} 28. Rxc3 {[%clk 0:00:40]} 1-0